bitfinex-derivatives/quotes_ETHF0:USTF0_20250112
["timestamp","ask_amount","ask_price","bid_price","bid_amount"]
[1736642330611,0.21315,3285.1,3285.0,0.66566]
[1736642331011,0.21315,3285.2,3285.0,0.66566]
[1736642331316,0.21315,3285.2,3285.1,0.21315]
[1736642333713,0.4524,3285.4,3285.0,0.4525]
[1736642333920,0.21315,3285.1,3285.0,0.66566]
[1736642334411,0.21315,3285.1,3285.0,0.4525]
[1736642336417,0.21315,3285.1,3285.0,0.66566]
[1736642339313,0.4524,3285.4,3285.0,0.4525]
[1736642339512,0.66554,3285.4,3285.3,0.21314]
[1736642339714,0.4524,3285.4,3285.3,0.21314]
[1736642340220,0.21313,3285.6,3285.0,0.4525]
[1736642340407,0.21313,3285.6,3285.5,0.21313]
[1736642340612,0.21313,3285.6,3285.4,0.21313]
[1736642340812,0.4533,3285.8,3285.2,3.2078]
[1736642341019,0.21312,3285.7,3285.5,0.21312]
[1736642341218,0.21312,3285.7,3285.3,0.4734]
[1736642341421,0.4533,3285.8,3285.3,0.4734]
[1736642341622,0.21312,3285.6,3285.4,0.21313]
[1736642341822,0.21313,3285.5,3285.3,0.68654]
[1736642342013,0.21313,3285.5,3285.0,0.4525]
[1736642342014,0.21313,3285.4,3285.2,0.21314]
[1736642342314,0.4533,3285.8,3285.2,0.21314]
[1736642342519,0.21313,3285.5,3285.3,0.21314]
[1736642343623,0.4533,3285.8,3285.0,0.4525]
[1736642343826,0.4533,3285.8,3285.6,0.21311]
[1736642344119,10.01587573,3285.9,3285.6,3.2078]
[1736642344319,10.01587573,3285.9,3285.8,0.21311]
[1736642344724,0.21309,3286.1,3285.7,1.3489]
[1736642344920,0.2131,3286.0,3285.7,1.56201]
[1736642345231,0.9412,3286.2,3285.7,1.56201]
[1736642345429,0.2131,3285.9,3285.7,1.56201]
[1736642345926,0.2131,3286.0,3285.7,1.56201]
[1736642346125,0.2131,3286.0,3285.8,0.21311]
[1736642346518,0.9412,3286.2,3285.7,1.56201]
[1736642346719,0.21311,3285.8,3285.7,0.4556]
[1736642349929,0.21312,3285.6,3285.4,0.66883]
[1736642350123,0.21312,3285.6,3285.4,0.8989]
[1736642350324,0.4512,3285.7,3285.4,0.8989]
[1736642350529,0.4512,3285.7,3285.6,0.21312]
[1736642350830,0.4512,3285.7,3285.5,0.21312]
[1736642351331,0.66432,3285.7,3285.5,0.21312]
[1736642351728,0.66432,3285.7,3285.4,1.11203]
[1736642352131,0.4512,3285.7,3285.4,0.8989]
[1736642352333,0.21313,3285.6,3285.4,0.8989]
[1736642353322,0.4512,3285.7,3285.4,0.8989]
[1736642353831,0.21313,3285.5,3285.4,0.8989]
[1736642355338,10.7245658,3285.5,3285.4,0.8989]
[1736642355839,0.21314,3285.3,3285.2,3.2078]
[1736642357034,0.21315,3285.2,3285.0,0.4438]
[1736642357628,14.1936358,3285.5,3285.0,0.4438]
[1736642357835,0.21315,3285.1,3285.0,0.4438]
[1736642360549,0.21316,3285.0,3284.9,0.4409]
[1736642362655,0.4548,3285.2,3284.8,3.2078]
[1736642362955,0.68287,3284.9,3284.8,3.2078]
[1736642363656,0.21318,3284.8,3284.6,1.13359]
[1736642364652,0.21318,3284.7,3284.6,1.13359]
[1736642364856,0.21318,3284.7,3284.6,0.9204]
[1736642365154,0.21318,3284.7,3284.6,1.13359]
[1736642366050,0.4697,3284.9,3284.6,1.13359]
[1736642366254,0.21317,3284.8,3284.7,0.21317]
[1736642367963,0.21318,3284.7,3284.6,1.13358]
[1736642368745,0.21318,3284.7,3284.6,0.9204]
[1736642370453,0.21318,3284.7,3284.6,0.4596]
[1736642372656,0.21318,3284.7,3284.6,0.67279]
[1736642374553,0.21318,3284.7,3284.6,0.4596]
[1736642374754,0.21318,3284.7,3284.6,0.67279]
[1736642375158,0.21318,3284.8,3284.7,0.21318]
[1736642377460,10.0371287,3285.2,3284.6,0.4596]
[1736642377663,9.5823287,3285.2,3285.1,0.21315]
[1736642377851,9.5823287,3285.2,3285.1,2.33050661]
[1736642378163,1.312,3286.0,3285.1,2.11735661]
[1736642378164,9.5823287,3285.7,3285.1,2.11735661]
[1736642378456,9.5823287,3285.7,3285.6,3.42092]
[1736642379457,9.5823287,3286.4,3285.6,8.42092]
[1736642379762,9.5823287,3286.4,3286.3,0.21308]
[1736642381162,4.0906,3286.8,3286.1,0.9292]
[1736642381356,4.0906,3286.8,3286.5,0.21306]
[1736642382258,4.0906,3286.8,3286.1,0.9292]
[1736642382460,4.0906,3286.8,3286.4,0.21306]
[1736642382660,4.0906,3286.8,3286.3,0.21307]
[1736642383257,4.30365,3286.8,3286.2,0.21308]
[1736642383753,4.30365,3286.8,3286.1,0.9292]
[1736642383754,4.0906,3286.8,3286.1,0.9292]
[1736642383955,0.21305,3286.7,3286.1,1.14229]
[1736642384458,0.21305,3286.7,3286.2,0.21308]
[1736642384659,4.0906,3286.8,3286.2,0.21308]
[1736642384855,4.30365,3286.8,3286.1,0.9292]
[1736642385163,4.0906,3286.8,3286.3,0.21307]
[1736642386267,4.0906,3286.8,3286.1,0.9292]
[1736642386659,4.0906,3286.8,3286.4,0.21307]
[1736642386867,4.30364,3286.8,3286.3,0.21307]
[1736642387068,4.0906,3286.8,3286.1,0.9292]
[1736642387375,4.30365,3286.8,3286.2,0.21308]
[1736642387666,4.30365,3286.8,3286.3,0.21307]
[1736642388268,4.0906,3286.8,3286.1,0.9292]
[1736642388869,4.0906,3286.8,3286.1,0.67528]
[1736642388870,0.21306,3286.6,3286.1,0.67528]
[1736642389066,0.21306,3286.6,3286.2,0.21308]
[1736642392369,0.21305,3286.7,3286.4,0.21307]
[1736642392668,4.30365,3286.8,3286.4,0.21307]
[1736642392872,0.21305,3286.7,3286.4,0.21307]
[1736642395772,4.0906,3286.8,3286.1,0.4622]
[1736642395972,4.0906,3286.8,3286.6,0.21305]
[1736642396575,4.0906,3286.8,3286.7,0.21305]
[1736642396870,4.0906,3286.8,3286.6,0.21305]
[1736642397463,3.6576,3286.8,3286.1,0.4622]
[1736642397665,3.2078,3286.8,3286.7,0.21305]
[1736642398876,22.87621532,3287.1,3286.4,0.4749]
[1736642398877,22.87621532,3287.1,3286.4,3.6827]
[1736642399176,22.43491532,3287.1,3287.0,0.21303]
[1736642399565,11.92347952,3287.1,3287.0,0.21303]
[1736642400172,11.92347952,3287.1,3287.0,0.66703]
[1736642400576,11.92347952,3287.1,3287.0,0.21303]
[1736642400875,0.21303,3287.0,3286.9,1.379]
[1736642401271,0.21302,3287.2,3286.9,1.59203]
[1736642401776,0.21303,3287.1,3286.9,0.927]
[1736642401970,0.21303,3287.0,3286.9,0.473]
[1736642402175,0.4336,3287.0,3286.8,3.2078]
[1736642402372,0.64454,3286.9,3286.8,3.2078]
[1736642402668,0.4315,3286.9,3286.8,3.2078]
[1736642403075,0.4315,3286.9,3286.8,3.42084]
[1736642403380,0.4336,3287.0,3286.8,3.2078]
[1736642403669,0.4336,3287.0,3286.9,0.21304]
[1736642404569,0.4336,3287.0,3286.8,3.2078]
[1736642404570,0.64664,3287.0,3286.8,3.42084]
[1736642404770,0.21304,3286.9,3286.8,3.2078]
[1736642404973,0.21305,3286.7,3286.6,0.4637]
[1736642405175,0.4336,3287.0,3286.6,0.4637]
[1736642405471,0.21305,3286.8,3286.6,0.67676]
[1736642405674,0.21305,3286.7,3286.6,0.67676]
[1736642405876,0.21305,3286.7,3286.6,0.4637]
[1736642407279,0.21305,3286.8,3286.6,0.4637]
[1736642407679,0.21305,3286.8,3286.6,0.67676]
[1736642408181,3.2078,3286.9,3286.6,0.4637]
[1736642408384,0.21305,3286.8,3286.6,0.67676]
[1736642408572,0.21306,3286.8,3286.6,0.67677]
[1736642409177,0.21307,3286.8,3286.6,0.67677]
[1736642409378,3.42086,3286.9,3286.7,0.21307]
[1736642409579,0.64665,3287.0,3286.8,0.21306]
[1736642410079,0.67884,3287.2,3287.1,0.21304]
[1736642410278,0.4658,3287.2,3286.6,0.9317]
[1736642410475,0.21305,3287.1,3286.9,0.21305]
[1736642410783,0.67884,3287.2,3286.9,0.21305]
[1736642411580,0.21305,3287.0,3286.7,0.21307]
[1736642411884,0.21305,3287.1,3286.9,0.21306]
[1736642412280,0.4658,3287.2,3286.9,0.21306]
[1736642412480,0.67884,3287.2,3286.9,0.21306]
[1736642413483,0.21305,3287.1,3286.9,0.21306]
[1736642413682,0.21426481,3287.1,3286.9,0.21306]
[1736642413988,0.21426481,3287.1,3286.8,0.21306]
[1736642414177,0.21426481,3287.1,3286.9,0.21306]
[1736642415482,0.21426481,3287.1,3286.6,0.9317]
[1736642415686,0.21426481,3287.1,3286.7,0.21307]
[1736642415885,0.21426481,3287.1,3286.8,0.21306]
[1736642416082,0.00121481,3287.1,3287.0,0.21305]
[1736642425801,0.21426481,3287.1,3287.0,0.21305]
[1736642426204,0.21426481,3287.1,3286.8,2.11735661]
[1736642426404,0.21426481,3287.1,3287.0,0.21305]
[1736642426600,0.21305,3287.0,3286.7,0.21307]
[1736642426807,0.21306,3286.9,3286.8,0.21306]
[1736642427295,0.21306,3286.8,3286.7,0.21307]
[1736642428294,3.42086,3286.9,3286.8,0.21306]
[1736642429296,3.2078,3286.9,3286.8,0.21306]
[1736642429497,3.42086,3286.9,3286.8,0.21306]
[1736642429896,3.2078,3286.9,3286.8,0.21306]
[1736642430999,0.4517,3287.0,3286.9,0.21306]
[1736642432397,0.21306,3286.9,3286.8,0.21306]
[1736642432999,0.4517,3287.0,3286.6,0.9317]
[1736642433200,0.21306,3286.9,3286.8,0.21306]
[1736642435010,0.4517,3287.0,3286.6,0.9317]
[1736642435305,0.66475,3287.0,3286.9,0.21306]
[1736642436402,0.21306,3286.9,3286.8,0.21306]
[1736642436707,3.42086,3286.9,3286.8,0.21306]
[1736642437305,0.21306,3286.9,3286.8,0.21306]
[1736642437605,0.21309,3286.4,3286.3,0.21309]
[1736642437805,0.53265,3286.9,3286.0,0.4711]
[1736642437806,3.2078,3286.5,3286.0,0.4711]
[1736642437997,0.21309,3286.4,3286.0,0.4711]
[1736642438204,0.67169,3286.4,3286.3,0.2131]
[1736642439709,0.4586,3286.4,3286.3,0.2131]
[1736642443810,0.4582,3286.8,3286.7,0.21307]
[1736642445603,0.4582,3286.8,3286.2,2.11735661]
[1736642445807,0.67127,3286.8,3286.6,0.21307]
[1736642446006,0.4582,3286.8,3286.6,0.21307]
[1736642447606,0.67126,3286.8,3286.6,0.21307]
[1736642448211,3.87906,3286.8,3286.6,0.21307]
[1736642449114,3.666,3286.8,3286.3,0.2131]
[1736642449410,3.666,3286.8,3286.6,0.21307]
[1736642450712,3.87906,3286.8,3286.6,0.21307]
[1736642452411,3.666,3286.8,3286.2,2.58385661]
[1736642452615,3.666,3286.8,3286.7,0.21307]
[1736642453613,3.666,3286.8,3286.2,2.58385661]
[1736642453910,0.21307,3286.7,3286.5,0.21308]
[1736642454413,3.666,3286.8,3286.5,0.21308]
[1736642454711,3.87907,3286.8,3286.6,0.21308]
[1736642458125,3.666,3286.8,3286.2,2.58385661]
[1736642458415,3.666,3286.8,3286.7,0.21307]
[1736642458630,3.2078,3286.8,3286.7,0.21307]
[1736642458815,9.56524262,3286.9,3286.5,5.32515661]
[1736642459010,9.56524262,3286.9,3286.8,2.33041661]
[1736642459207,0.00121481,3287.1,3287.0,0.21305]
[1736642460917,12.77304262,3287.7,3287.0,0.21305]
[1736642461126,3.2078,3287.7,3287.6,0.21301]
[1736642461317,9.56524262,3287.8,3287.7,0.21301]
[1736642461618,9.56524262,3287.8,3287.7,2.33036661]
[1736642462218,0.4393,3288.4,3287.7,2.11735661]
[1736642462219,0.21298,3288.2,3287.7,2.11735661]
[1736642462614,0.21298,3288.2,3288.0,0.21298]
[1736642462813,0.4393,3288.4,3287.7,2.11735661]
[1736642463122,0.65226,3288.4,3288.3,0.21297]
[1736642463421,0.4393,3288.4,3288.3,0.21297]
[1736642463619,0.4393,3288.4,3287.7,2.64987661]
[1736642463924,0.65226,3288.4,3287.7,2.64987661]
[1736642464221,0.65226,3288.4,3288.2,0.21297]
[1736642464621,0.4393,3288.4,3288.2,0.21297]
[1736642465014,0.65226,3288.4,3288.1,0.21298]
[1736642466516,3.42078,3288.2,3287.9,0.21299]
[1736642466716,3.2078,3288.2,3288.0,0.21299]
[1736642468320,3.2078,3288.2,3287.8,0.433]
[1736642468618,0.65226,3288.4,3288.1,0.21298]
[1736642469421,3.2078,3288.2,3288.1,0.21298]
[1736642470018,3.2078,3288.2,3287.8,0.433]
[1736642470224,3.2078,3288.2,3288.0,0.21298]
[1736642471127,3.2078,3288.2,3287.8,0.433]
[1736642471316,3.2078,3288.2,3288.1,0.21298]
[1736642473519,0.65226,3288.4,3288.1,0.21298]
[1736642473721,0.4393,3288.4,3288.1,0.21298]
[1736642473921,0.21297,3288.3,3288.1,0.21298]
[1736642474422,0.65227,3288.4,3288.1,0.21298]
[1736642475123,3.86007,3288.4,3288.1,0.21298]
[1736642475427,3.86007,3288.4,3288.2,0.21297]
[1736642475428,3.86006,3288.4,3288.2,0.21297]
[1736642476226,3.6471,3288.4,3288.3,0.21297]
[1736642477019,3.6471,3288.4,3287.8,0.433]
[1736642477020,3.6471,3288.4,3288.2,0.21297]
[1736642477826,3.86006,3288.4,3287.8,0.433]
[1736642478029,3.86006,3288.4,3288.1,0.21298]
[1736642478426,3.86006,3288.4,3287.8,0.433]
[1736642478620,3.6471,3288.4,3287.8,0.433]
[1736642478830,3.6471,3288.4,3288.3,0.21297]
[1736642479031,3.2078,3288.4,3288.3,0.21297]
[1736642479226,3.2078,3288.4,3288.3,1.13127]
[1736642479622,3.2078,3288.4,3288.3,0.9183]
[1736642479827,3.2078,3288.4,3288.3,1.13127]
[1736642480831,3.2078,3288.4,3288.3,0.9183]
[1736642481536,3.2078,3288.4,3288.3,1.13127]
[1736642483337,3.86464,3288.8,3288.5,0.21295]
[1736642483636,0.21294,3288.7,3288.5,0.21295]
[1736642483836,3.6517,3288.8,3288.4,0.4573]
[1736642484039,0.21294,3288.7,3288.4,0.4573]
[1736642484230,0.21294,3288.7,3288.5,0.21295]
[1736642484430,0.21294,3288.7,3288.4,0.4573]
[1736642484431,0.21294,3288.7,3288.4,0.67026]
[1736642484632,3.6517,3288.8,3288.4,0.4573]
[1736642484936,0.21295,3288.6,3288.4,0.67026]
[1736642485744,0.21295,3288.6,3288.4,0.4573]
[1736642486039,0.21295,3288.6,3288.4,0.67026]
[1736642487136,0.21294,3288.7,3288.5,0.21295]
[1736642487435,0.21295,3288.6,3288.4,0.67026]
[1736642488339,0.21295,3288.7,3288.4,0.67026]
[1736642488535,3.6517,3288.8,3288.4,0.67026]
[1736642488536,0.21295,3288.6,3288.4,0.67026]
[1736642490043,3.6517,3288.8,3288.7,0.21294]
[1736642490341,3.2078,3288.8,3288.7,0.21294]
[1736642491242,3.42074,3288.8,3288.6,0.21294]
[1736642491435,3.2078,3288.8,3288.6,0.21294]
[1736642492147,3.2078,3288.8,3288.7,0.21294]
[1736642497240,3.2078,3288.8,3288.5,2.11735661]
[1736642497444,3.42074,3288.8,3288.7,0.21294]
[1736642497643,0.21294,3288.7,3288.6,0.21294]
[1736642497849,3.42074,3288.8,3288.7,0.21294]
[1736642498049,3.2078,3288.8,3288.7,0.21294]
[1736642498544,3.42073,3288.8,3288.7,0.21294]
[1736642498844,3.2078,3288.8,3288.7,0.21294]
[1736642499148,3.42073,3288.8,3288.7,0.21294]
[1736642499344,3.2078,3288.8,3288.7,0.21294]
[1736642499551,3.42073,3288.8,3288.7,0.21294]
[1736642499945,3.2078,3288.8,3288.7,0.21294]
[1736642502648,3.42073,3288.8,3288.7,0.21294]
[1736642503344,0.21295,3288.6,3288.5,0.21295]
[1736642503550,0.21295,3288.5,3288.4,2.96]
[1736642503751,0.66575,3288.5,3288.4,2.96]
[1736642506249,0.4645,3288.7,3288.4,2.96]
[1736642506557,9.53318633,3288.6,3288.5,0.21295]
[1736642506750,9.74613633,3288.6,3288.4,3.17296]
[1736642507252,0.21295,3288.5,3288.4,2.96]
[1736642507553,0.4645,3288.7,3288.3,0.4403]
[1736642507750,3.42076,3288.4,3288.3,0.4403]
[1736642508746,3.42076,3288.4,3288.2,0.21297]
[1736642508951,3.42076,3288.4,3288.1,0.21297]
[1736642509144,3.42076,3288.4,3288.1,0.21298]
[1736642509352,3.42076,3288.4,3288.0,0.4315]
[1736642509545,3.42076,3288.4,3288.2,0.21297]
[1736642510155,3.2078,3288.4,3288.2,0.21297]
[1736642510355,3.42076,3288.4,3288.2,0.21297]
[1736642510955,3.2078,3288.4,3288.1,0.21298]
[1736642511157,3.42076,3288.4,3288.1,0.21298]
[1736642511657,3.2078,3288.4,3288.1,0.21298]
[1736642511950,0.21297,3288.3,3288.1,0.21298]
[1736642512261,0.4713,3288.2,3288.1,0.21298]
[1736642512454,0.9227,3288.2,3288.1,0.21298]
[1736642512756,1.13567,3288.2,3288.1,0.21298]
[1736642513556,1.13567,3288.2,3288.0,0.4315]
[1736642513858,0.21298,3288.1,3288.0,0.21298]
[1736642515654,0.9227,3288.2,3287.8,2.11735661]
[1736642515851,0.21298,3288.1,3288.0,0.21299]
[1736642517562,1.13568,3288.2,3288.1,0.21298]
[1736642520660,0.21297,3288.3,3287.8,2.11735661]
[1736642520860,0.21297,3288.3,3288.2,0.21297]
[1736642521261,3.2078,3288.5,3288.1,2.11735661]
[1736642521568,3.2078,3288.5,3288.4,0.21296]
[1736642522265,3.2078,3288.5,3288.2,1.33]
[1736642522458,3.42076,3288.5,3288.2,1.33]
[1736642522659,3.42076,3288.5,3288.3,0.21297]
[1736642523361,0.21296,3288.5,3288.3,0.21297]
[1736642523864,0.21296,3288.5,3288.2,1.33]
[1736642524163,0.21296,3288.5,3288.4,0.21296]
[1736642524757,7.11735661,3288.5,3287.4,3.2078]
[1736642524960,0.92,3288.8,3286.6,4.77567513]
[1736642524961,3.2078,3287.5,3286.6,4.77567513]
[1736642525166,3.2078,3287.1,3286.9,7.1635127]
[1736642525475,0.21305,3287.0,3286.9,7.1635127]
[1736642526363,3.2078,3287.1,3286.4,0.21309]
[1736642526560,3.2078,3286.6,3286.4,0.21309]
[1736642526760,3.42088,3286.6,3286.3,0.21309]
[1736642527362,3.2078,3286.6,3285.8,0.4521]
[1736642527666,3.2078,3286.6,3286.4,0.21309]
[1736642528169,3.2078,3286.6,3285.8,0.4521]
[1736642528461,8.57583243,3286.9,3286.1,5.32515661]
[1736642528768,3.2078,3286.6,3286.5,0.21308]
[1736642530267,3.42087,3286.8,3286.5,0.21308]
[1736642531470,0.21307,3286.7,3286.4,0.21309]
[1736642532770,3.2078,3286.8,3286.3,0.2131]
[1736642532965,0.21307,3286.7,3286.1,2.11735661]
[1736642533168,3.42087,3286.8,3286.4,0.21308]
[1736642533562,3.2078,3286.8,3286.5,0.21308]
[1736642534070,3.2078,3286.8,3286.2,0.2131]
[1736642534274,3.2078,3286.8,3286.5,0.21308]
[1736642534665,3.2078,3286.8,3286.6,0.4473]
[1736642534866,0.21307,3286.7,3286.6,0.4473]
[1736642535871,0.21308,3286.6,3286.3,0.21309]
[1736642536171,3.2078,3286.8,3286.2,0.4473]
[1736642536172,0.4334,3286.7,3286.2,0.4473]
[1736642536373,0.64647,3286.7,3286.4,0.21309]
[1736642536772,0.21308,3286.6,3286.3,0.21309]
[1736642537073,0.4334,3286.7,3286.2,0.4473]
[1736642537265,0.4334,3286.7,3286.4,0.21309]
[1736642537266,0.64647,3286.7,3286.4,0.21309]
[1736642539073,0.21308,3286.6,3286.3,0.21309]
[1736642539267,0.4334,3286.7,3286.4,0.21309]
[1736642539673,0.64647,3286.7,3286.4,0.21309]
[1736642540067,0.21308,3286.6,3286.3,0.21309]
[1736642541272,0.8732,3286.7,3286.2,0.4473]
[1736642541677,3.2078,3286.8,3286.7,0.21307]
[1736642542374,3.2078,3286.8,3286.2,0.4473]
[1736642542574,0.21308,3286.7,3286.2,0.4473]
[1736642542970,0.21308,3286.7,3286.5,0.21308]
[1736642545273,3.2078,3286.8,3286.3,0.21309]
[1736642545473,0.21308,3286.5,3286.3,0.21309]
[1736642545675,0.2131,3286.4,3286.2,0.4473]
[1736642545981,0.21309,3286.5,3286.3,0.21309]
[1736642546278,0.4754,3286.6,3286.3,0.21309]
[1736642546474,0.21309,3286.4,3286.3,0.21309]
[1736642547375,0.4754,3286.6,3286.2,0.4473]
[1736642547575,0.21309,3286.4,3286.3,0.21309]
[1736642549684,0.4754,3286.6,3286.2,0.4473]
[1736642549880,0.21309,3286.4,3286.3,0.21309]
[1736642552184,0.2131,3286.3,3286.2,0.6604]
[1736642553582,0.21309,3286.4,3286.3,0.21309]
[1736642554477,0.2131,3286.3,3286.2,0.6604]
[1736642555184,0.21309,3286.4,3286.3,0.21309]
[1736642557077,0.67619,3286.5,3286.4,0.21309]
[1736642557783,0.4631,3286.5,3286.2,0.4473]
[1736642557980,0.4631,3286.5,3286.3,0.21309]
[1736642558179,0.67619,3286.5,3286.3,0.21309]
[1736642558380,0.21309,3286.4,3286.3,0.21309]
[1736642559290,0.67619,3286.5,3286.4,0.21309]
[1736642560490,3.2078,3286.6,3286.2,0.4473]
[1736642560790,3.2078,3286.6,3286.5,0.21308]
[1736642563686,3.6418,3286.6,3286.5,0.21308]
[1736642566088,0.434,3286.6,3286.5,0.21308]
[1736642566884,0.434,3286.6,3286.2,0.4473]
[1736642567089,0.64708,3286.6,3286.4,0.21309]
[1736642568084,0.434,3286.6,3286.5,0.21308]
[1736642569192,0.21309,3286.5,3286.3,0.21309]
[1736642569392,0.67669,3286.5,3286.3,0.21309]
[1736642569792,0.2131,3286.3,3286.1,0.21311]
[1736642569987,3.4209,3286.3,3286.1,0.21311]
[1736642571584,12.98907142,3286.3,3286.1,0.21311]
[1736642571988,12.77597142,3286.3,3286.0,0.21311]
[1736642572181,0.21311,3286.2,3285.9,0.9298]
[1736642572388,0.21311,3286.2,3286.0,0.21312]
[1736642573488,0.21311,3286.2,3286.1,0.21311]
[1736642577690,12.77597142,3286.3,3286.2,0.2131]
[1736642577892,9.56817142,3286.3,3286.2,0.2131]
[1736642579094,8.5954375,3286.5,3286.4,0.21309]
[1736642579292,8.3823475,3286.5,3286.4,0.21309]
[1736642582102,11.5901475,3286.5,3285.9,0.9298]
[1736642582298,0.21311,3286.2,3286.0,0.21311]
[1736642583198,0.6862,3286.3,3285.9,0.9298]
[1736642583398,0.6862,3286.3,3286.1,0.21311]
[1736642584303,0.4731,3286.3,3285.9,0.9298]
[1736642584491,0.4731,3286.3,3286.2,0.2131]
[1736642586195,8.3823475,3286.4,3286.3,0.2131]
[1736642587203,3.2078,3286.5,3286.4,0.21309]
[1736642587591,8.3823475,3286.6,3286.5,0.21308]
[1736642589107,8.3823475,3286.6,3286.5,1.52908]
[1736642589306,8.3823475,3286.7,3286.6,0.21308]
[1736642591708,0.2131,3286.3,3286.1,0.21311]
[1736642591899,3.4209,3286.3,3286.1,0.21311]
[1736642592205,0.21311,3286.2,3286.0,1.12711]
[1736642592402,0.65341,3286.2,3286.0,1.12711]
[1736642592902,0.4403,3286.2,3286.0,0.914]
[1736642593105,0.4403,3286.2,3286.1,0.21311]
[1736642593500,0.6534,3286.2,3286.1,0.21311]
[1736642593697,0.4403,3286.2,3286.1,0.21311]
[1736642593900,0.4362,3286.6,3286.0,0.914]
[1736642594105,8.8361475,3286.7,3286.2,2.11513654]
[1736642594404,9.0492175,3286.7,3286.6,0.21308]
[1736642595201,8.8361475,3286.7,3286.6,0.21308]
[1736642595605,9.0492175,3286.7,3286.3,0.2131]
[1736642595806,9.0492175,3286.7,3286.4,0.67518]
[1736642596006,0.21308,3286.6,3286.4,0.67518]
[1736642597711,0.21308,3286.5,3286.4,0.67518]
[1736642597901,0.21308,3286.6,3286.4,0.67518]
[1736642599403,8.8361475,3286.7,3286.4,0.4621]
[1736642599703,9.0492275,3286.7,3286.5,0.21308]
[1736642599903,0.21309,3286.4,3286.2,0.2131]
[1736642600309,0.4742,3286.3,3286.2,0.2131]
[1736642602906,0.6873,3286.3,3286.2,0.2131]
[1736642605610,0.4742,3286.3,3286.0,1.3596]
[1736642605818,0.21311,3286.1,3286.0,1.57271]
[1736642607418,0.21311,3286.1,3286.0,1.12711]
[1736642608116,0.4554,3286.2,3286.0,0.914]
[1736642608418,0.66851,3286.2,3286.1,0.21311]
[1736642612808,0.4554,3286.2,3286.1,0.21311]
[1736642621714,0.4742,3286.3,3286.0,1.91510144]
[1736642621922,8.3815347,3286.4,3286.3,0.2131]
[1736642622422,8.3815347,3286.5,3286.4,0.21309]
[1736642622724,8.3815347,3286.5,3286.4,1.21419144]
[1736642623620,3.2078,3286.7,3286.6,0.21308]
[1736642623826,3.2078,3286.7,3286.6,1.21418144]
[1736642625319,3.2078,3286.7,3286.6,0.21308]
[1736642626618,8.3815347,3286.8,3286.5,0.4433]
[1736642626821,8.3815347,3286.8,3286.7,0.21307]
[1736642628225,0.4616,3286.9,3286.4,0.478]
[1736642628526,0.4616,3286.9,3286.8,0.21306]
[1736642631524,9.56817142,3287.0,3286.9,0.21306]
[1736642631732,9.56817142,3287.0,3286.9,1.11876]
[1736642632623,8.37956701,3287.3,3286.9,0.9057]
[1736642632824,8.37956701,3287.3,3287.2,0.21304]
[1736642633927,19.14375986,3287.6,3287.5,0.21302]
[1736642636436,0.21302,3287.5,3287.3,0.21303]
[1736642636623,0.4681,3287.4,3287.3,0.21303]
[1736642636936,0.9334,3287.4,3287.3,0.21303]
[1736642637729,0.21303,3287.3,3287.1,0.21304]
[1736642638234,0.9334,3287.4,3286.9,0.9057]
[1736642638625,0.21303,3287.3,3287.1,0.21304]
[1736642639030,0.21303,3287.3,3286.9,0.9057]
[1736642639229,0.21303,3287.3,3287.2,0.21304]
[1736642639432,1.14643,3287.4,3286.9,0.9057]
[1736642639632,1.14643,3287.4,3287.2,0.21303]
[1736642640535,0.9334,3287.4,3287.2,0.21303]
[1736642640732,1.14643,3287.4,3287.2,0.21303]
[1736642641829,0.21303,3287.3,3287.2,0.21303]
[1736642642028,0.9334,3287.4,3287.2,0.21303]
[1736642642228,1.14643,3287.4,3287.2,0.21303]
[1736642642429,19.14375986,3287.6,3287.5,0.21302]
[1736642643233,3.2078,3287.7,3287.6,0.21301]
[1736642644637,8.37956701,3287.7,3287.6,0.21301]
[1736642645232,8.37956701,3287.7,3287.1,5.85465038]
[1736642645537,8.37956701,3287.7,3287.1,5.32203038]
[1736642645838,0.4717,3287.6,3287.5,0.21301]
[1736642646038,0.4717,3287.6,3287.1,5.32203038]
[1736642646238,0.21302,3287.5,3287.3,0.21303]
[1736642646531,0.21302,3287.5,3287.4,0.21302]
[1736642646736,0.21302,3287.5,3287.3,0.21303]
[1736642647932,0.473,3287.4,3287.3,0.21303]
[1736642648241,0.473,3287.4,3287.0,0.4702]
[1736642648442,0.68603,3287.4,3287.2,0.21304]
[1736642648738,0.21303,3287.3,3287.2,0.21304]
[1736642648939,0.473,3287.4,3287.2,0.21304]
[1736642649236,0.68603,3287.4,3287.2,0.21304]
[1736642649831,3.2078,3287.5,3287.0,0.4702]
[1736642650036,10.52686701,3287.6,3287.0,0.4702]
[1736642650037,10.05126701,3287.6,3287.5,0.21302]
[1736642650237,8.85126701,3287.6,3287.5,0.21302]
[1736642650944,0.4717,3287.6,3287.5,0.21302]
[1736642652336,0.4576,3287.8,3287.2,2.11423038]
[1736642652638,0.21301,3287.7,3287.6,0.21301]
[1736642652839,0.6706,3287.8,3287.7,0.213]
[1736642653036,0.4576,3287.8,3287.7,0.213]
[1736642654247,3.676,3287.9,3287.8,0.213]
[1736642654445,3.2078,3287.9,3287.8,0.213]
[1736642654742,3.2078,3287.9,3287.8,2.32723038]
[1736642656545,0.4405,3288.1,3288.0,0.21299]
[1736642659854,0.4405,3288.1,3287.8,2.11423038]
[1736642660054,0.4405,3288.1,3287.6,1.3689]
[1736642660055,0.65348,3288.1,3287.9,0.21299]
[1736642660550,0.65348,3288.1,3288.0,0.21299]